[Event "Titled Tuesday Blitz April 26 Early 2022"]
[White "Hnydiuk, Aleksander"]
[Black "Stribuk, Artiom"]
[WhiteFideId "1109057"]
[BlackFideId "13515659"]
[WhiteElo "2374"]
[BlackElo "2259"]
[Result "0-1"]
[Round "06"]
[TimeControl "180+1"]
[Date "2022.04.26"]
[WhiteClock "0:00:27"]
[BlackClock "0:00:30"]

1. d4 {[%clk 0:03:00]}  Nf6 {[%clk 0:02:55]} 2. c4 {[%clk 0:03:01]}  g6 {[%clk 0:02:55]} 3. Nc3 {[%clk 0:03:00]}  d5 {[%clk 0:02:56]} 4. cxd5 {[%clk 0:02:56]}  Nxd5 {[%clk 0:02:56]} 5. e4 {[%clk 0:02:53]}  Nxc3 {[%clk 0:02:56]} 6. bxc3 {[%clk 0:02:54]}  Bg7 {[%clk 0:02:57]} 7. Bc4 {[%clk 0:02:53]}  O-O {[%clk 0:02:55]} 8. Ne2 {[%clk 0:02:54]}  c5 {[%clk 0:02:54]} 9. O-O {[%clk 0:02:54]}  Nc6 {[%clk 0:02:55]} 10. Be3 {[%clk 0:02:55]}  Bg4 {[%clk 0:02:50]} 11. f3 {[%clk 0:02:54]}  Na5 {[%clk 0:02:50]} 12. Bd3 {[%clk 0:02:38]}  cxd4 {[%clk 0:02:47]} 13. cxd4 {[%clk 0:02:37]}  Be6 {[%clk 0:02:47]} 14. d5 {[%clk 0:02:30]}  Bxa1 {[%clk 0:02:46]} 15. Qxa1 {[%clk 0:02:30]}  f6 {[%clk 0:02:44]} 16. Bh6 {[%clk 0:02:28]}  Re8 {[%clk 0:02:39]} 17. Nf4 {[%clk 0:02:04]}  Bf7 {[%clk 0:02:30]} 18. e5 {[%clk 0:01:52]}  fxe5 {[%clk 0:01:52]} 19. Qxe5 {[%clk 0:01:53]}  Qb6+ {[%clk 0:01:52]} 20. Kh1 {[%clk 0:01:52]}  Qf6 {[%clk 0:01:53]} 21. Qe1 {[%clk 0:01:27]}  g5 {[%clk 0:01:39]} 22. Ne6 {[%clk 0:01:20]}  Qxh6 {[%clk 0:01:36]} 23. Qxa5 {[%clk 0:01:19]}  Bxe6 {[%clk 0:01:34]} 24. dxe6 {[%clk 0:01:20]}  Qf6 {[%clk 0:01:13]} 25. Re1 {[%clk 0:01:10]}  b6 {[%clk 0:01:04]} 26. Qd5 {[%clk 0:01:02]}  Rad8 {[%clk 0:00:56]} 27. Qe4 {[%clk 0:01:01]}  Qg7 {[%clk 0:00:56]} 28. Bb1 {[%clk 0:00:56]}  Rd4 {[%clk 0:00:53]} 29. Qe3 {[%clk 0:00:46]}  Red8 {[%clk 0:00:52]} 30. Bc2 {[%clk 0:00:44]}  Rd2 {[%clk 0:00:49]} 31. Ba4 {[%clk 0:00:42]}  h6 {[%clk 0:00:43]} 32. Bb3 {[%clk 0:00:36]}  Qd4 {[%clk 0:00:33]} 33. Qxd4 {[%clk 0:00:33]}  R8xd4 {[%clk 0:00:34]} 34. Kg1 {[%clk 0:00:33]}  Kg7 {[%clk 0:00:34]} 35. Rc1 {[%clk 0:00:31]}  Rb2 {[%clk 0:00:32]} 36. Rc7 {[%clk 0:00:27]}  Kf6 {[%clk 0:00:30]} 37. Rxa7 {[%clk 0:00:27]}  Rdd2 {[%clk 0:00:30]} 0-1


[Site "https://www.chess.com"]

[Event "Titled Tuesday Blitz April 26 Early 2022"]
[White "Ibrahimli, Murad"]
[Black "Hasangatin, Ramil"]
[WhiteFideId "13410229"]
[BlackFideId "4122160"]
[WhiteElo "2109"]
[BlackElo "2375"]
[Result "1-0"]
[Round "06"]
[TimeControl "180+1"]
[Date "2022.04.26"]
[WhiteClock "0:00:18"]
[BlackClock "0:00:18"]

1. c4 {[%clk 0:03:00]}  Nf6 {[%clk 0:02:53]} 2. Nc3 {[%clk 0:03:00]}  e5 {[%clk 0:02:53]} 3. Nf3 {[%clk 0:03:00]}  Nc6 {[%clk 0:02:53]} 4. g3 {[%clk 0:03:00]}  Bb4 {[%clk 0:02:53]} 5. Bg2 {[%clk 0:03:00]}  Bxc3 {[%clk 0:02:53]} 6. bxc3 {[%clk 0:02:56]}  O-O {[%clk 0:02:50]} 7. O-O {[%clk 0:02:56]}  Re8 {[%clk 0:02:51]} 8. d3 {[%clk 0:02:50]}  e4 {[%clk 0:02:50]} 9. Nd4 {[%clk 0:02:50]}  Nxd4 {[%clk 0:02:50]} 10. cxd4 {[%clk 0:02:50]}  d5 {[%clk 0:02:50]} 11. Bg5 {[%clk 0:02:44]}  dxc4 {[%clk 0:02:09]} 12. dxe4 {[%clk 0:02:26]}  h6 {[%clk 0:02:08]} 13. Bxf6 {[%clk 0:02:26]}  Qxf6 {[%clk 0:02:09]} 14. e5 {[%clk 0:02:26]}  Qa6 {[%clk 0:02:06]} 15. a4 {[%clk 0:02:22]}  c6 {[%clk 0:02:00]} 16. e4 {[%clk 0:02:19]}  c5 {[%clk 0:01:39]} 17. d5 {[%clk 0:02:12]}  Rxe5 {[%clk 0:01:37]} 18. f4 {[%clk 0:02:13]}  Re8 {[%clk 0:01:34]} 19. Qc2 {[%clk 0:02:10]}  b6 {[%clk 0:01:13]} 20. Rfe1 {[%clk 0:02:04]}  Bb7 {[%clk 0:01:12]} 21. Bf1 {[%clk 0:01:58]}  Qa5 {[%clk 0:01:07]} 22. Bxc4 {[%clk 0:01:57]}  Rad8 {[%clk 0:01:06]} 23. Qd3 {[%clk 0:01:25]}  Kh8 {[%clk 0:00:50]} 24. d6 {[%clk 0:01:08]}  Qb4 {[%clk 0:00:39]} 25. Rab1 {[%clk 0:00:37]}  Qa5 {[%clk 0:00:36]} 26. Bxf7 {[%clk 0:00:32]}  Rf8 {[%clk 0:00:33]} 27. Bb3 {[%clk 0:00:31]}  Ba6 {[%clk 0:00:30]} 28. Qd5 {[%clk 0:00:25]}  c4 {[%clk 0:00:26]} 29. Bxc4 {[%clk 0:00:24]}  Bxc4 {[%clk 0:00:23]} 30. Qxc4 {[%clk 0:00:24]}  Rxd6 {[%clk 0:00:23]} 31. Red1 {[%clk 0:00:25]}  Rfd8 {[%clk 0:00:18]} 32. Rxd6 {[%clk 0:00:22]}  Rxd6 {[%clk 0:00:19]} 33. e5 {[%clk 0:00:22]}  Rd2 {[%clk 0:00:19]} 34. Qc8+ {[%clk 0:00:20]}  Kh7 {[%clk 0:00:18]} 35. Rc1 {[%clk 0:00:18]} 1-0


[Site "https://www.chess.com"]

[Event "Titled Tuesday Blitz April 26 Early 2022"]
[White "Iljin, Timofey"]
[Black "Wagner, Dennis"]
[WhiteFideId "14110180"]
[BlackFideId "24650684"]
[WhiteElo "2464"]
[BlackElo "2701"]
[Result "0-1"]
[Round "06"]
[TimeControl "180+1"]
[Date "2022.04.26"]
[WhiteClock "0:00:01"]
[BlackClock "0:00:32"]

1. d4 {[%clk 0:02:59]}  Nf6 {[%clk 0:03:00]} 2. c4 {[%clk 0:02:59]}  g6 {[%clk 0:03:00]} 3. Nc3 {[%clk 0:03:00]}  Bg7 {[%clk 0:03:01]} 4. e4 {[%clk 0:03:00]}  O-O {[%clk 0:03:02]} 5. f4 {[%clk 0:03:01]}  d6 {[%clk 0:03:01]} 6. Nf3 {[%clk 0:03:01]}  c5 {[%clk 0:03:00]} 7. d5 {[%clk 0:03:01]}  e6 {[%clk 0:03:01]} 8. Be2 {[%clk 0:03:02]}  exd5 {[%clk 0:03:01]} 9. cxd5 {[%clk 0:03:03]}  Re8 {[%clk 0:03:01]} 10. e5 {[%clk 0:03:03]}  dxe5 {[%clk 0:03:02]} 11. fxe5 {[%clk 0:03:04]}  Ng4 {[%clk 0:02:52]} 12. Bg5 {[%clk 0:03:05]}  Qb6 {[%clk 0:02:50]} 13. O-O {[%clk 0:03:05]}  c4+ {[%clk 0:02:48]} 14. Kh1 {[%clk 0:03:05]}  Nd7 {[%clk 0:02:36]} 15. d6 {[%clk 0:02:57]}  Ndxe5 {[%clk 0:02:17]} 16. Nd5 {[%clk 0:02:52]}  Nf2+ {[%clk 0:02:17]} 17. Rxf2 {[%clk 0:02:51]}  Qxf2 {[%clk 0:02:18]} 18. Nc7 {[%clk 0:02:41]}  Bd7 {[%clk 0:01:24]} 19. Be7 {[%clk 0:02:25]}  Bc6 {[%clk 0:01:20]} 20. Qf1 {[%clk 0:01:55]}  Qxf1+ {[%clk 0:00:53]} 21. Rxf1 {[%clk 0:01:56]}  b5 {[%clk 0:00:31]} 22. Nxe5 {[%clk 0:01:41]}  Bxe5 {[%clk 0:00:32]} 23. Bf3 {[%clk 0:01:42]}  Bxf3 {[%clk 0:00:31]} 24. Rxf3 {[%clk 0:01:43]}  Bxd6 {[%clk 0:00:31]} 25. Nxe8 {[%clk 0:01:19]}  Rxe8 {[%clk 0:00:30]} 26. Bh4 {[%clk 0:01:19]}  Re2 {[%clk 0:00:28]} 27. b3 {[%clk 0:01:18]}  Rxa2 {[%clk 0:00:27]} 28. g4 {[%clk 0:01:15]}  Rxh2+ {[%clk 0:00:26]} 29. Kg1 {[%clk 0:01:15]}  Rxh4 {[%clk 0:00:26]} 30. bxc4 {[%clk 0:01:15]}  Rxg4+ {[%clk 0:00:26]} 31. Kf2 {[%clk 0:01:16]}  Rxc4 {[%clk 0:00:25]} 32. Rc3 {[%clk 0:01:17]}  Rxc3 {[%clk 0:00:25]} 33. Ke2 {[%clk 0:01:17]}  b4 {[%clk 0:00:26]} 34. Kd2 {[%clk 0:01:18]}  a5 {[%clk 0:00:27]} 35. Ke2 {[%clk 0:01:18]}  a4 {[%clk 0:00:28]} 36. Kd2 {[%clk 0:01:19]}  a3 {[%clk 0:00:29]} 37. Ke2 {[%clk 0:01:20]}  a2 {[%clk 0:00:30]} 38. Kd2 {[%clk 0:01:21]}  a1=Q {[%clk 0:00:30]} 39. Ke2 {[%clk 0:01:22]}  Qb2+ {[%clk 0:00:31]} 40. Kf1 {[%clk 0:00:01]}  Rc1# {[%clk 0:00:32]} 0-1


[Site "https://www.chess.com"]

[Event "Titled Tuesday Blitz April 26 Early 2022"]
[White "Johnson, Ben"]
[Black "Lach, Aleksandra"]
[WhiteFideId "2010917"]
[BlackFideId "1134299"]
[WhiteElo "2187"]
[BlackElo "2172"]
[Result "1/2-1/2"]
[Round "06"]
[TimeControl "180+1"]
[Date "2022.04.26"]
[WhiteClock "0:00:09"]
[BlackClock "0:00:07"]

1. Nf3 {[%clk 0:03:00]}  f5 {[%clk 0:02:59]} 2. d4 {[%clk 0:03:00]}  Nf6 {[%clk 0:02:57]} 3. c4 {[%clk 0:02:57]}  d6 {[%clk 0:02:52]} 4. g3 {[%clk 0:02:56]}  g6 {[%clk 0:02:51]} 5. Bg2 {[%clk 0:02:56]}  Bg7 {[%clk 0:02:51]} 6. O-O {[%clk 0:02:56]}  O-O {[%clk 0:02:52]} 7. Nc3 {[%clk 0:02:57]}  c6 {[%clk 0:02:53]} 8. Qc2 {[%clk 0:02:51]}  Na6 {[%clk 0:02:53]} 9. a3 {[%clk 0:02:49]}  c5 {[%clk 0:02:37]} 10. d5 {[%clk 0:02:46]}  Rb8 {[%clk 0:02:37]} 11. Re1 {[%clk 0:02:38]}  e5 {[%clk 0:02:36]} 12. dxe6 {[%clk 0:02:36]}  Bxe6 {[%clk 0:02:36]} 13. b3 {[%clk 0:02:24]}  h6 {[%clk 0:02:31]} 14. Bb2 {[%clk 0:02:19]}  Nc7 {[%clk 0:02:28]} 15. Rad1 {[%clk 0:02:15]}  b5 {[%clk 0:02:24]} 16. cxb5 {[%clk 0:02:08]}  Nxb5 {[%clk 0:02:24]} 17. Nxb5 {[%clk 0:02:06]}  Rxb5 {[%clk 0:02:24]} 18. Nd2 {[%clk 0:02:05]}  Qb8 {[%clk 0:02:12]} 19. e4 {[%clk 0:01:43]}  fxe4 {[%clk 0:01:52]} 20. Bxe4 {[%clk 0:01:26]}  Nxe4 {[%clk 0:01:48]} 21. Rxe4 {[%clk 0:01:21]}  Bf7 {[%clk 0:01:20]} 22. Bxg7 {[%clk 0:01:17]}  Kxg7 {[%clk 0:01:20]} 23. Qc3+ {[%clk 0:01:14]}  Kh7 {[%clk 0:01:13]} 24. Re7 {[%clk 0:01:09]}  Rb7 {[%clk 0:01:11]} 25. Rde1 {[%clk 0:01:08]}  Kg8 {[%clk 0:01:05]} 26. h4 {[%clk 0:00:51]}  d5 {[%clk 0:01:04]} 27. Qxc5 {[%clk 0:00:35]}  Rxe7 {[%clk 0:00:51]} 28. Rxe7 {[%clk 0:00:35]}  Qc8 {[%clk 0:00:32]} 29. Qxc8 {[%clk 0:00:31]}  Rxc8 {[%clk 0:00:33]} 30. Rxa7 {[%clk 0:00:29]}  d4 {[%clk 0:00:20]} 31. Rd7 {[%clk 0:00:28]}  Rc1+ {[%clk 0:00:16]} 32. Kg2 {[%clk 0:00:24]}  Ra1 {[%clk 0:00:16]} 33. a4 {[%clk 0:00:23]}  Rd1 {[%clk 0:00:16]} 34. Rxd4 {[%clk 0:00:22]}  Kg7 {[%clk 0:00:17]} 35. Nf3 {[%clk 0:00:22]}  Rb1 {[%clk 0:00:16]} 36. b4 {[%clk 0:00:21]}  Be8 {[%clk 0:00:16]} 37. a5 {[%clk 0:00:19]}  Bc6 {[%clk 0:00:16]} 38. Rd6 {[%clk 0:00:17]}  Be4 {[%clk 0:00:16]} 39. Re6 {[%clk 0:00:15]}  Bd5 {[%clk 0:00:15]} 40. Re5 {[%clk 0:00:15]}  Ba8 {[%clk 0:00:15]} 41. Re3 {[%clk 0:00:12]}  Rxb4 {[%clk 0:00:14]} 42. Ra3 {[%clk 0:00:12]}  Rb7 {[%clk 0:00:12]} 43. Kf1 {[%clk 0:00:10]}  Rb1+ {[%clk 0:00:12]} 44. Ke2 {[%clk 0:00:10]}  Rb2+ {[%clk 0:00:12]} 45. Nd2 {[%clk 0:00:10]}  Rb7 {[%clk 0:00:12]} 46. a6 {[%clk 0:00:10]}  Ra7 {[%clk 0:00:12]} 47. Ke3 {[%clk 0:00:10]}  Kf6 {[%clk 0:00:13]} 48. Ne4+ {[%clk 0:00:09]}  Ke5 {[%clk 0:00:13]} 49. Nc5 {[%clk 0:00:09]}  Kd5 {[%clk 0:00:13]} 50. Nd3 {[%clk 0:00:09]}  Re7+ {[%clk 0:00:13]} 51. Kd2 {[%clk 0:00:09]}  Kc6 {[%clk 0:00:12]} 52. Nf4 {[%clk 0:00:09]}  g5 {[%clk 0:00:12]} 53. hxg5 {[%clk 0:00:09]}  hxg5 {[%clk 0:00:13]} 54. Nh3 {[%clk 0:00:09]}  g4 {[%clk 0:00:13]} 55. Nf4 {[%clk 0:00:10]}  Kb6 {[%clk 0:00:13]} 56. Nd3 {[%clk 0:00:09]}  Bf3 {[%clk 0:00:12]} 57. Ra4 {[%clk 0:00:09]}  Re2+ {[%clk 0:00:12]} 58. Kc3 {[%clk 0:00:09]}  Re8 {[%clk 0:00:12]} 59. a7 {[%clk 0:00:08]}  Ra8 {[%clk 0:00:11]} 60. Ne5 {[%clk 0:00:08]}  Be2 {[%clk 0:00:09]} 61. Nxg4 {[%clk 0:00:05]}  Bxg4 {[%clk 0:00:08]} 62. Rxg4 {[%clk 0:00:06]}  Rxa7 {[%clk 0:00:09]} 63. Rd4 {[%clk 0:00:05]}  Kc6 {[%clk 0:00:09]} 64. Kd3 {[%clk 0:00:06]}  Ra2 {[%clk 0:00:09]} 65. Ke3 {[%clk 0:00:06]}  Kc5 {[%clk 0:00:09]} 66. Rd2 {[%clk 0:00:05]}  Ra3+ {[%clk 0:00:09]} 67. Kf4 {[%clk 0:00:06]}  Ra6 {[%clk 0:00:09]} 68. f3 {[%clk 0:00:06]}  Rf6+ {[%clk 0:00:09]} 69. Kg4 {[%clk 0:00:06]}  Rg6+ {[%clk 0:00:09]} 70. Kf5 {[%clk 0:00:06]}  Rxg3 {[%clk 0:00:09]} 71. f4 {[%clk 0:00:07]}  Rf3 {[%clk 0:00:10]} 72. Ke5 {[%clk 0:00:06]}  Re3+ {[%clk 0:00:08]} 73. Kf6 {[%clk 0:00:07]}  Rf3 {[%clk 0:00:05]} 74. f5 {[%clk 0:00:07]}  Ra3 {[%clk 0:00:05]} 75. Ke6 {[%clk 0:00:07]}  Ra6+ {[%clk 0:00:05]} 76. Kf7 {[%clk 0:00:08]}  Ra7+ {[%clk 0:00:05]} 77. Kf6 {[%clk 0:00:08]}  Ra6+ {[%clk 0:00:05]} 78. Kg5 {[%clk 0:00:08]}  Kc4 {[%clk 0:00:05]} 79. f6 {[%clk 0:00:08]}  Ra5+ {[%clk 0:00:05]} 80. Kg6 {[%clk 0:00:08]}  Ra3 {[%clk 0:00:05]} 81. Kg7 {[%clk 0:00:08]}  Rg3+ {[%clk 0:00:04]} 82. Kf8 {[%clk 0:00:09]}  Rf3 {[%clk 0:00:05]} 83. f7 {[%clk 0:00:09]}  Kc3 {[%clk 0:00:05]} 84. Rd1 {[%clk 0:00:08]}  Kc4 {[%clk 0:00:05]} 85. Ke8 {[%clk 0:00:08]}  Re3+ {[%clk 0:00:05]} 86. Kd8 {[%clk 0:00:08]}  Rf3 {[%clk 0:00:06]} 87. Ke7 {[%clk 0:00:08]}  Re3+ {[%clk 0:00:05]} 88. Kf8 {[%clk 0:00:09]}  Rf3 {[%clk 0:00:06]} 89. Ke8 {[%clk 0:00:08]}  Re3+ {[%clk 0:00:06]} 90. Kf8 {[%clk 0:00:09]}  Rf3 {[%clk 0:00:07]} 1/2-1/2


[Site "https://www.chess.com"]

[Event "Titled Tuesday Blitz April 26 Early 2022"]
[White "Karavade, Eesha"]
[Black "Seo, Jung Min"]
[WhiteFideId "5012600"]
[BlackFideId "1734687"]
[WhiteElo "2545"]
[BlackElo "2797"]
[Result "1-0"]
[Round "06"]
[TimeControl "180+1"]
[Date "2022.04.26"]
[WhiteClock "0:01:11"]
[BlackClock "0:01:43"]

1. d4 {[%clk 0:03:00]}  Nf6 {[%clk 0:02:59]} 2. c4 {[%clk 0:03:00]}  g6 {[%clk 0:03:00]} 3. Nc3 {[%clk 0:02:58]}  Bg7 {[%clk 0:03:00]} 4. e4 {[%clk 0:02:58]}  O-O {[%clk 0:03:01]} 5. Nf3 {[%clk 0:02:58]}  d6 {[%clk 0:03:01]} 6. h3 {[%clk 0:02:58]}  e5 {[%clk 0:02:57]} 7. d5 {[%clk 0:02:58]}  Na6 {[%clk 0:02:55]} 8. Be3 {[%clk 0:02:53]}  Nd7 {[%clk 0:02:51]} 9. g4 {[%clk 0:02:51]}  Ndc5 {[%clk 0:02:48]} 10. a3 {[%clk 0:02:38]}  f5 {[%clk 0:02:47]} 11. gxf5 {[%clk 0:02:32]}  gxf5 {[%clk 0:02:47]} 12. b4 {[%clk 0:02:21]}  Nxe4 {[%clk 0:02:46]} 13. Nxe4 {[%clk 0:02:21]}  fxe4 {[%clk 0:02:47]} 14. Ng5 {[%clk 0:02:17]}  Bf5 {[%clk 0:02:46]} 15. Bg2 {[%clk 0:02:17]}  Nb8 {[%clk 0:02:39]} 16. Ne6 {[%clk 0:02:13]}  Bxe6 {[%clk 0:02:38]} 17. dxe6 {[%clk 0:02:13]}  Nc6 {[%clk 0:02:28]} 18. Bxe4 {[%clk 0:02:04]}  Qh4 {[%clk 0:02:28]} 19. Qg4 {[%clk 0:01:57]}  Qe7 {[%clk 0:02:04]} 20. Qh5 {[%clk 0:01:50]}  Bf6 {[%clk 0:02:03]} 21. Rg1+ {[%clk 0:01:50]}  Kh8 {[%clk 0:02:03]} 22. Ke2 {[%clk 0:01:37]}  Nd4+ {[%clk 0:02:00]} 23. Bxd4 {[%clk 0:01:37]}  exd4 {[%clk 0:02:01]} 24. Kd3 {[%clk 0:01:37]}  c6 {[%clk 0:01:56]} 25. Rg6 {[%clk 0:01:29]}  Rg8 {[%clk 0:01:54]} 26. Rag1 {[%clk 0:01:25]}  Rxg6 {[%clk 0:01:53]} 27. Rxg6 {[%clk 0:01:23]}  d5 {[%clk 0:01:51]} 28. cxd5 {[%clk 0:01:19]}  cxd5 {[%clk 0:01:51]} 29. Bf5 {[%clk 0:01:13]}  Rg8 {[%clk 0:01:43]} 30. Rxf6 {[%clk 0:01:11]} 1-0


[Site "https://www.chess.com"]

[Event "Titled Tuesday Blitz April 26 Early 2022"]
[White "Khamdamova, Afruza"]
[Black "Djokic, Mihailo"]
[WhiteFideId "14210444"]
[BlackFideId "976440"]
[WhiteElo "2429"]
[BlackElo "2640"]
[Result "0-1"]
[Round "06"]
[TimeControl "180+1"]
[Date "2022.04.26"]
[WhiteClock "0:01:11"]
[BlackClock "0:01:43"]

1. e4 {[%clk 0:03:00]}  c5 {[%clk 0:03:00]} 2. Nf3 {[%clk 0:03:00]}  d6 {[%clk 0:03:00]} 3. d4 {[%clk 0:03:01]}  cxd4 {[%clk 0:03:01]} 4. Nxd4 {[%clk 0:03:01]}  Nf6 {[%clk 0:03:02]} 5. Nc3 {[%clk 0:03:01]}  g6 {[%clk 0:03:02]} 6. Be3 {[%clk 0:03:01]}  Bg7 {[%clk 0:03:03]} 7. f3 {[%clk 0:03:02]}  O-O {[%clk 0:03:03]} 8. Qd2 {[%clk 0:03:01]}  Nc6 {[%clk 0:03:04]} 9. Bc4 {[%clk 0:03:01]}  Bd7 {[%clk 0:03:04]} 10. Bb3 {[%clk 0:03:00]}  Rc8 {[%clk 0:03:05]} 11. O-O-O {[%clk 0:03:00]}  Ne5 {[%clk 0:03:06]} 12. Bh6 {[%clk 0:02:58]}  Bxh6 {[%clk 0:03:05]} 13. Qxh6 {[%clk 0:02:57]}  Rxc3 {[%clk 0:03:06]} 14. bxc3 {[%clk 0:02:56]}  Qc7 {[%clk 0:03:07]} 15. Qe3 {[%clk 0:02:49]}  a5 {[%clk 0:03:06]} 16. a3 {[%clk 0:02:37]}  Rc8 {[%clk 0:03:01]} 17. Kd2 {[%clk 0:02:35]}  Qc5 {[%clk 0:02:57]} 18. Ke2 {[%clk 0:02:29]}  a4 {[%clk 0:02:54]} 19. Ba2 {[%clk 0:02:19]}  Qxa3 {[%clk 0:02:52]} 20. Ra1 {[%clk 0:02:11]}  Qc5 {[%clk 0:02:41]} 21. Rhb1 {[%clk 0:02:10]}  b5 {[%clk 0:02:40]} 22. h3 {[%clk 0:02:02]}  Qxc3 {[%clk 0:02:18]} 23. Qxc3 {[%clk 0:02:01]}  Rxc3 {[%clk 0:02:18]} 24. Nxb5 {[%clk 0:01:58]}  Rxc2+ {[%clk 0:02:12]} 25. Kf1 {[%clk 0:01:58]}  Nh5 {[%clk 0:02:09]} 26. Nd4 {[%clk 0:01:53]}  Rd2 {[%clk 0:01:54]} 27. Rd1 {[%clk 0:01:51]}  Ng3+ {[%clk 0:01:53]} 28. Ke1 {[%clk 0:01:11]}  Rxg2 {[%clk 0:01:49]} 29. f4 {[%clk 0:01:11]}  Nf3+ {[%clk 0:01:43]} 0-1


[Site "https://www.chess.com"]

[Event "Titled Tuesday Blitz April 26 Early 2022"]
[White "Khusenkhojaev, Muhammad"]
[Black "Rodrigues, Bruno Morado"]
[WhiteFideId "14700247"]
[BlackFideId "2115654"]
[WhiteElo "2180"]
[BlackElo "2040"]
[Result "1-0"]
[Round "06"]
[TimeControl "180+1"]
[Date "2022.04.26"]
[WhiteClock "0:00:13"]
[BlackClock "0:00:09"]

1. e4 {[%clk 0:02:59]}  c5 {[%clk 0:02:59]} 2. Nf3 {[%clk 0:02:56]}  Nc6 {[%clk 0:02:59]} 3. d4 {[%clk 0:02:56]}  cxd4 {[%clk 0:03:00]} 4. Nxd4 {[%clk 0:02:56]}  e5 {[%clk 0:03:01]} 5. Nb5 {[%clk 0:02:52]}  d6 {[%clk 0:03:01]} 6. Be3 {[%clk 0:02:45]}  Be7 {[%clk 0:03:00]} 7. N1c3 {[%clk 0:02:43]}  Nf6 {[%clk 0:02:53]} 8. Nd5 {[%clk 0:02:42]}  Nxd5 {[%clk 0:02:52]} 9. exd5 {[%clk 0:02:43]}  Nb8 {[%clk 0:02:53]} 10. a4 {[%clk 0:02:34]}  a6 {[%clk 0:02:46]} 11. Na3 {[%clk 0:02:33]}  O-O {[%clk 0:02:46]} 12. Nc4 {[%clk 0:02:33]}  Nd7 {[%clk 0:02:40]} 13. a5 {[%clk 0:02:29]}  f5 {[%clk 0:02:39]} 14. f3 {[%clk 0:02:25]}  Bg5 {[%clk 0:02:19]} 15. Bxg5 {[%clk 0:02:16]}  Qxg5 {[%clk 0:02:20]} 16. Nxd6 {[%clk 0:02:16]}  Qh4+ {[%clk 0:02:20]} 17. Ke2 {[%clk 0:02:12]}  e4 {[%clk 0:02:16]} 18. g3 {[%clk 0:02:02]}  exf3+ {[%clk 0:02:12]} 19. Kxf3 {[%clk 0:02:02]}  Qb4 {[%clk 0:02:03]} 20. Nc4 {[%clk 0:01:48]}  Ne5+ {[%clk 0:01:47]} 21. Nxe5 {[%clk 0:01:41]}  Qe4+ {[%clk 0:01:43]} 22. Kf2 {[%clk 0:01:41]}  Qxh1 {[%clk 0:01:41]} 23. Nf3 {[%clk 0:01:28]}  f4 {[%clk 0:01:31]} 24. Bg2 {[%clk 0:01:26]}  fxg3+ {[%clk 0:01:30]} 25. Kxg3 {[%clk 0:01:25]}  Qxd1 {[%clk 0:01:29]} 26. Rxd1 {[%clk 0:01:26]}  Bf5 {[%clk 0:01:21]} 27. c4 {[%clk 0:01:22]}  Rac8 {[%clk 0:01:21]} 28. Rc1 {[%clk 0:01:21]}  Rfe8 {[%clk 0:01:03]} 29. Nd4 {[%clk 0:01:12]}  Bd7 {[%clk 0:01:02]} 30. c5 {[%clk 0:01:07]}  Re3+ {[%clk 0:00:58]} 31. Kf4 {[%clk 0:00:26]}  Rd3 {[%clk 0:00:46]} 32. Ke5 {[%clk 0:00:25]}  Re8+ {[%clk 0:00:24]} 33. Kd6 {[%clk 0:00:24]}  Rxd4 {[%clk 0:00:20]} 34. Kxd7 {[%clk 0:00:22]}  Re2 {[%clk 0:00:20]} 35. Bh1 {[%clk 0:00:17]}  Rxb2 {[%clk 0:00:18]} 36. d6 {[%clk 0:00:17]}  Rdd2 {[%clk 0:00:15]} 37. Kc7 {[%clk 0:00:13]}  Rdc2 {[%clk 0:00:06]} 38. Rxc2 {[%clk 0:00:13]}  Rxc2 {[%clk 0:00:07]} 39. d7 {[%clk 0:00:13]}  Rxc5+ {[%clk 0:00:07]} 40. Kb8 {[%clk 0:00:13]}  Rc1 {[%clk 0:00:08]} 41. d8=Q+ {[%clk 0:00:13]}  Kf7 {[%clk 0:00:09]} 42. Qd5+ {[%clk 0:00:13]} 1-0


[Site "https://www.chess.com"]

[Event "Titled Tuesday Blitz April 26 Early 2022"]
[White "Kotepalli, Sai Nirupama"]
[Black "Kadam, Om Manish"]
[WhiteFideId "5039444"]
[BlackFideId "45076294"]
[WhiteElo "2383"]
[BlackElo "1729"]
[Result "1-0"]
[Round "06"]
[TimeControl "180+1"]
[Date "2022.04.26"]
[WhiteClock "0:00:15"]
[BlackClock "0:00:10"]

1. e4 {[%clk 0:03:00]}  c6 {[%clk 0:02:56]} 2. d3 {[%clk 0:03:00]}  d5 {[%clk 0:02:56]} 3. Nd2 {[%clk 0:02:59]}  dxe4 {[%clk 0:02:54]} 4. dxe4 {[%clk 0:03:00]}  g6 {[%clk 0:02:54]} 5. Ngf3 {[%clk 0:02:58]}  Bg7 {[%clk 0:02:54]} 6. Bd3 {[%clk 0:02:58]}  Nd7 {[%clk 0:02:51]} 7. c3 {[%clk 0:02:54]}  Nc5 {[%clk 0:02:50]} 8. Bc2 {[%clk 0:02:53]}  Nd3+ {[%clk 0:02:50]} 9. Bxd3 {[%clk 0:02:49]}  Qxd3 {[%clk 0:02:51]} 10. Qe2 {[%clk 0:02:48]}  Qxe2+ {[%clk 0:02:43]} 11. Kxe2 {[%clk 0:02:49]}  Nf6 {[%clk 0:02:42]} 12. Re1 {[%clk 0:02:45]}  b6 {[%clk 0:02:41]} 13. Kf1 {[%clk 0:02:43]}  Ba6+ {[%clk 0:02:39]} 14. Kg1 {[%clk 0:02:42]}  Nd7 {[%clk 0:02:30]} 15. Nb3 {[%clk 0:02:38]}  Ne5 {[%clk 0:02:25]} 16. Nxe5 {[%clk 0:02:34]}  Bxe5 {[%clk 0:02:26]} 17. f4 {[%clk 0:02:34]}  Bg7 {[%clk 0:02:26]} 18. e5 {[%clk 0:02:33]}  O-O-O {[%clk 0:02:22]} 19. Be3 {[%clk 0:02:29]}  e6 {[%clk 0:02:19]} 20. a4 {[%clk 0:02:27]}  Bc4 {[%clk 0:02:12]} 21. Nd4 {[%clk 0:02:17]}  Kb7 {[%clk 0:02:10]} 22. a5 {[%clk 0:02:14]}  c5 {[%clk 0:02:08]} 23. Nf3 {[%clk 0:02:12]}  h6 {[%clk 0:02:01]} 24. b4 {[%clk 0:02:03]}  cxb4 {[%clk 0:01:52]} 25. axb6 {[%clk 0:01:55]}  axb6 {[%clk 0:01:53]} 26. Reb1 {[%clk 0:01:41]}  b3 {[%clk 0:01:32]} 27. Nd2 {[%clk 0:01:36]}  Rxd2 {[%clk 0:01:32]} 28. Bxd2 {[%clk 0:01:32]}  Rd8 {[%clk 0:01:33]} 29. Rb2 {[%clk 0:01:28]}  Bf8 {[%clk 0:01:31]} 30. Kf2 {[%clk 0:01:10]}  Rd3 {[%clk 0:01:13]} 31. Ra4 {[%clk 0:01:01]}  b5 {[%clk 0:01:13]} 32. Ra1 {[%clk 0:01:00]}  Bc5+ {[%clk 0:01:13]} 33. Ke1 {[%clk 0:00:57]}  b4 {[%clk 0:01:07]} 34. Rc1 {[%clk 0:00:51]}  Bd5 {[%clk 0:00:31]} 35. Ke2 {[%clk 0:00:42]}  Be4 {[%clk 0:00:16]} 36. Rxb3 {[%clk 0:00:37]}  Kb6 {[%clk 0:00:12]} 37. Rb2 {[%clk 0:00:25]}  h5 {[%clk 0:00:10]} 38. cxb4 {[%clk 0:00:20]}  Bd4 {[%clk 0:00:11]} 39. Rbc2 {[%clk 0:00:20]}  Rb3 {[%clk 0:00:11]} 40. Rc8 {[%clk 0:00:18]}  Bd3+ {[%clk 0:00:11]} 41. Ke1 {[%clk 0:00:18]}  Be4 {[%clk 0:00:10]} 42. R8c4 {[%clk 0:00:16]}  Rd3 {[%clk 0:00:10]} 43. Rxd4 {[%clk 0:00:15]}  Rxd4 {[%clk 0:00:10]} 44. Be3 {[%clk 0:00:15]} 1-0


[Site "https://www.chess.com"]